Cogmind - Beta 14 *** ADVENTURER MODE // 2024.10.02 @ 21:56:31 // Winter2019/RPGLIKE Player: Noname Result: Destroyed by P-70 Sage with High-powered Shock Rifle Performance ------------- Evolutions (6) 3000 Regions Visited (16) 3200 Robots Destroyed (111) 555 Value Destroyed (4496) 4496 Prototype IDs (30) 600 Alien Tech Used (0) 0 Bonus (600) 600 TOTAL SCORE: 12451 Bonus ------- Entered DSFs 500 Met Data Miner 300 Friendly Fire -200 Cogmind --------- Core Integrity 0/1000 Matter 297/300 Energy 499/540 System Corruption 3% Temperature Cool (-150) Movement Treading (160) Location -4/Factory Parts ------- > --- POWER (3) -------- Neutrino Core Antimatter Reactor Backup Power VII > --- PROPULSION (4) --- Improved Heavy Treads Centrium Wheel Centrium Wheel > --- UTILITY (9) ------ Improved Cryofiber Web Experimental Heat Sink Improved Trap Scanner Advanced Sensor Array (fused) Advanced Signal Interpreter Energy Filter Improved Weapon Cycler Improved Transmission Jammer Improved Medium Armor Plating > --- WEAPON (3) ------- Tesla Rifle Disruptor Cannon Lance > --- INVENTORY (6) ---- Improved Heavy Treads Centrium Wheel Advanced Cooling System Graphene Brace Micro-nuke Launcher Peak State ------------ > --- POWER ------------ Neutrino Core Antimatter Reactor Backup Power VII > --- PROPULSION ------- Improved Heavy Treads Centrium Wheel Centrium Wheel > --- UTILITY ---------- Improved Cryofiber Web Experimental Heat Sink Improved Trap Scanner Advanced Sensor Array Advanced Signal Interpreter Improved Weapon Cycler Improved Transmission Jammer Improved Medium Armor Plating Advanced System Restoration Module > --- WEAPON ----------- Tesla Rifle Railgun Lance > --- INVENTORY -------- Advanced Cooling System Energy Filter Graphene Brace Disruptor Cannon Cooled Plasma Cannon Mini Smartbomb Launcher [Rating: 119] Favorites ----------- Power Backup Power VII Engine Ion Engine Power Core Backup Power VII Reactor Antimatter Reactor Propulsion Armored Huge Wheel Treads Light Treads Leg Aluminum Leg Wheel Armored Huge Wheel Utility Advanced Signal Interpreter Device Improved Cryofiber Web Storage Large Battery Processor Advanced Signal Interpreter Protection Improved Medium Armor Plating Weapon Tesla Rifle Energy Gun Tesla Rifle Energy Cannon Cooled Plasma Cannon Ballistic Gun Railgun Ballistic Cannon Enhanced Gauss Cannon Launcher Grenade Launcher Piercing Weapon Lance Build | -11 -10 -10 -9 -8 -7 -7 -7 -7 -6 -6 -6 -5 -5 -5 -5 -4 ------- Run | Yrd Mat Min Mat Mat Fac Was Fac DSF Fac Low Dat Pro Fac Was Fac Fac Slots Evolved 15 | 5 . . 2 2 1 . . . 2 . . 1 . . 1 1 Power 2 | . . . . . . . . . . . . 1 . . 1 . Propulsion 3 | 1 . . 1 . 1 . . . . . . . . . . . Utility 8 | 3 . . 1 2 . . . . 1 . . . . . . 1 Weapon 2 | 1 . . . . . . . . 1 . . . . . . . Parts Attached 130 | 5 6 1 9 11 . 2 6 8 19 . . 2 1 5 22 33 Power 12 | . 1 . . 1 . . 1 1 1 . . 1 . 2 2 2 Engine 3 | . 1 . . . . . 1 1 . . . . . . . . Core 7 | . . . . 1 . . . . 1 . . 1 . 1 2 1 Reactor 2 | . . . . . . . . . . . . . . 1 . 1 Propulsion 12 | 4 . . 2 . . . . 2 . . . . . . . 4 Treads 5 | 2 . . 2 . . . . . . . . . . . . 1 Leg . | . . . . . . . . . . . . . . . . . Wheel 7 | 2 . . . . . . . 2 . . . . . . . 3 Hover . | . . . . . . . . . . . . . . . . . Flight . | . . . . . . . . . . . . . . . . . Utility 69 | . 5 1 2 6 . 2 3 5 13 . . . 1 3 13 15 Device 45 | . 1 1 . 3 . 1 2 2 11 . . . 1 3 8 12 Storage 1 | . 1 . . . . . . . . . . . . . . . Processor 8 | . 2 . 1 1 . . 1 1 1 . . . . . 1 . Hackware . | . . . . . . . . . . . . . . . . . Protection 15 | . 1 . 1 2 . 1 . 2 1 . . . . . 4 3 Artifact . | . . . . . . . . . . . . . . . . . Weapon 37 | 1 . . 5 4 . . 2 . 5 . . 1 . . 7 12 Energy Gun 15 | . . . 4 2 . . 1 . 4 . . 1 . . 2 1 Energy Cannon 8 | . . . . . . . . . 1 . . . . . 3 4 Ballistic Gun 4 | 1 . . 1 . . . 1 . . . . . . . . 1 Ballistic Cannon 4 | . . . . . . . . . . . . . . . 1 3 Launcher 2 | . . . . 2 . . . . . . . . . . . . Special Weapon . | . . . . . . . . . . . . . . . . . Impact Weapon . | . . . . . . . . . . . . . . . . . Slashing Weapon . | . . . . . . . . . . . . . . . . . Piercing Weapon 4 | . . . . . . . . . . . . . . . 1 3 Special Melee Weapon . | . . . . . . . . . . . . . . . . . Unidentified Prototypes 8 | . . 1 1 . . . 1 . 4 . . . . . . 1 Parts Lost 11 | . . . . . . 6 . . . . . . . 5 . . Power 3 | . . . . . . . . . . . . . . 3 . . Propulsion 1 | . . . . . . 1 . . . . . . . . . . Utility 5 | . . . . . . 4 . . . . . . . 1 . . Weapon 2 | . . . . . . 1 . . . . . . . 1 . . Highest Loss Streak 5 | . . . . . . 5 . . . . . . . 3 . . To Critical Strikes . | . . . . . . . . . . . . . . . . . Average Slot Usage (%) 87 | . 85 100 96 99 92 40 38 73 83 87 87 87 88 68 84 89 Engine 2 | . 11 11 9 5 . . . 6 1 . . . . . . . Core 7 | . . . . 2 7 2 . . 4 6 6 8 11 4 14 12 Treads 5 | . 11 11 15 15 14 4 . . . . . . . . . 4 Wheel 9 | . 11 11 9 7 7 2 . 12 12 12 12 11 11 11 11 6 Device 29 | . 5 20 18 25 28 11 21 28 33 37 37 36 35 35 30 35 Processor 8 | . 9 22 19 15 14 8 3 7 8 6 6 5 5 5 5 5 Protection 5 | . 7 . 6 7 7 4 . 4 7 6 6 5 5 1 4 5 Energy Gun 8 | . 11 11 9 15 14 5 7 7 5 12 12 11 11 3 4 5 Energy Cannon 2 | . . . . . . . . . 5 6 6 5 5 3 4 2 Ballistic Gun 2 | . 11 11 7 . . . 7 7 . . . . . . . 2 Peak Build Rating 119 | 5 9 17 27 42 43 43 28 61 77 77 77 84 86 86 100 119 Average Rating 69 | 3 7 15 22 38 42 19 25 56 70 77 77 79 85 68 93 110 On Entrance 46 | 3 5 9 17 27 42 43 8 28 61 77 77 77 84 86 52 95 Naked Turns 30 | . . . . . . 30 . . . . . . . . . . Heaviest Build 70 | 7 14 13 16 37 37 37 12 46 53 39 39 54 54 54 70 69 Greatest Support 75 | 20 16 20 23 23 16 16 3 56 56 56 56 56 56 56 56 75 Greatest Overweight (x) 4 | . . . . 2 2 3 3 3 . . . . . 1 1 4 Average Overweight (x) . | . . . . . 2 . 3 . . . . . . . . 2 Largest Inventory Capacity 6 | 1 1 1 2 4 5 5 5 5 5 5 5 6 6 6 6 6 Average Capacity 4 | . 1 1 1 3 4 5 5 5 5 5 5 5 6 6 6 6 Most Carried 6 | 1 1 1 2 4 5 5 5 5 5 5 5 6 6 6 6 6 Average Carried 4 | . . . 1 3 4 5 3 4 4 5 5 5 5 6 5 5 Final Capacity 6 | 1 1 1 2 4 5 5 5 5 5 5 5 6 6 6 6 6 Final Carried 6 | 1 1 1 2 3 5 5 5 5 5 5 5 6 6 6 6 6 Class Distribution -------------------- 41% | Hacker-Mutant 22% | Hacker-Tank 17% | Hacker-Assassin 11% | Hacker-Skirmisher 7% | Mutant Dominant Class ---------------- Mutant | -10/Materials Mutant | -10/Mines Hacker-Mutant | -9/Materials Hacker-Mutant | -8/Materials Hacker-Mutant | -7/Factory Hacker-Mutant | -7/Waste Hacker-Mutant | -7/Factory Hacker-Mutant | -7/DSF Hacker-Mutant | -6/Factory Hacker-Tank | -6/Lower Caves Hacker-Tank | -6/Data Miner Hacker-Tank | -5/Proximity Caves Hacker-Tank | -5/Factory Hacker-Mutant | -5/Waste Hacker-Tank | -5/Factory Hacker-Assassin | -4/Factory Resources | -11 -10 -10 -9 -8 -7 -7 -7 -7 -6 -6 -6 -5 -5 -5 -5 -4 ----------- Run | Yrd Mat Min Mat Mat Fac Was Fac DSF Fac Low Dat Pro Fac Was Fac Fac Matter Collected 2376 | 220 82 69 123 140 . . . . 352 20 . 32 . . 650 688 Remotely . | . . . . . . . . . . . . . . . . . Salvage Created 4578 | . 130 107 306 811 . . . . 396 . . 253 . 678 723 1174 Parts 246 | . 3 6 18 49 . . . 1 30 . . 9 . 17 43 70 Haulers Intercepted . | . . . . . . . . . . . . . . . . . Recyclers Shooed 2 | . . . . 1 . . . . 1 . . . . . . . Parts Field Recycled . | . . . . . . . . . . . . . . . . . Retrieved Matter . | . . . . . . . . . . . . . . . . . Parts Self-Destructed 6 | . . . . . . . . . . . . 6 . . . . Prevented 3 | . . . . . . . . . . . . 3 . . . . Kills | -11 -10 -10 -9 -8 -7 -7 -7 -7 -6 -6 -6 -5 -5 -5 -5 -4 ------- Run | Yrd Mat Min Mat Mat Fac Was Fac DSF Fac Low Dat Pro Fac Was Fac Fac Combat Hostiles Destroyed 90 | . 2 5 4 22 . . . 1 9 . . 7 . 3 14 23 Melee 6 | . . . . . . . . . . . . . . . . 6 Guns 49 | . 2 5 3 14 . . . 1 3 . . 3 . . 3 15 Cannons 19 | . . . . . . . . . 4 . . 3 . 2 9 1 AOE 9 | . . . 1 7 . . . . 1 . . . . . . . Classes Destroyed 13 | . 2 1 2 1 . . . 1 2 . . 2 . 1 . 1 Worker 2 | . . . . 2 . . . . . . . . . . . . Recycler 2 | . . . . . . . . . 1 . . . . . . 1 Operator 3 | . . . 1 1 . . . . 1 . . . . . . . Drone 2 | . . . . . . . . . . . . 2 . . . . Watcher 12 | . 1 . 1 5 . . . . 2 . . . . . 2 1 Swarmer 23 | . . 3 . 8 . . . . 3 . . . . . . 9 Grunt 26 | . 2 2 1 13 . . . . 1 . . 3 . . 4 . Sentry 13 | . . . 3 1 . . . . 2 . . 1 . . 2 4 Specialist 2 | . . . . . . . . . . . . . . . . 2 Hunter 3 | . . . . . . . . . . . . 1 . . 2 . Programmer 19 | . . . . . . . . . 3 . . . . . 6 10 Heavy 1 | . . . . . . . . 1 . . . . . . . . Compactor 3 | . . . . . . . . . . . . . . 3 . . Best Kill Streak 7 | . 2 3 2 6 . . . 1 3 . . 4 . 1 3 7 Combat Bots Only 5 | . 2 3 2 4 . . . 1 3 . . 4 . 1 3 5 Max Kills in Single Turn 4 | . 1 1 2 4 . . . 1 1 . . 1 . 1 1 1 Gunslinging . | . . . . . . . . . . . . . . . . . Exploded 4 | . . . 1 4 . . . . 1 . . . . . . . Melee 1 | . . . . . . . . . . . . . . . . 1 Uniques/NPCs Destroyed . | . . . . . . . . . . . . . . . . . Combat | -11 -10 -10 -9 -8 -7 -7 -7 -7 -6 -6 -6 -5 -5 -5 -5 -4 -------- Run | Yrd Mat Min Mat Mat Fac Was Fac DSF Fac Low Dat Pro Fac Was Fac Fac Hostile Shots Fired 525 | . 2 28 15 88 . 9 . 13 71 . . 9 . 10 60 220 Missed 144 | . . 6 7 21 . 2 . 1 20 . . 2 . 2 20 63 Damage Taken 5252 | . 21 187 138 713 115 199 . 308 386 . . 77 . 195 533 2380 Core 3811 | . 16 145 97 502 75 180 . 255 239 . . 60 . 160 356 1726 Absorbed by Shields 42 | . . . . . . . . 42 . . . . . . . . Redirected to Core 3140 | . 6 125 87 416 36 68 . 191 219 . . 37 . 133 302 1520 Redirected to Shielding 3 | . 3 . . . . . . . . . . . . . . . Ignored by Resistances 2401 | . 6 57 50 293 30 89 . 196 217 . . 44 . 136 275 1008 Regen/Repaired (Parts) 58 | . . . 32 . . . . . . . . . . . . 26 Core Remaining (%) 89 | 100 . 88 85 97 . . . 61 . . . 96 . . 100 . Volleys Fired 306 | . 6 11 11 62 . 10 . 6 39 . . 10 . 31 47 73 Largest 3 | . 2 2 2 2 . 2 . 2 3 . . 3 . 3 3 3 Hottest 203 | . 70 70 68 122 . 122 . 108 170 . . 170 . 160 203 203 Shots Fired 592 | . 11 22 17 121 . 19 . 12 66 . . 30 . 60 84 150 Gun 408 | . 11 22 17 118 . 19 . 12 26 . . 20 . 29 28 106 Cannon 181 | . . . . . . . . . 40 . . 10 . 31 56 44 Launcher 3 | . . . . 3 . . . . . . . . . . . . Special . | . . . . . . . . . . . . . . . . . Kinetic 134 | . 6 11 11 . . . . 6 . . . . . . 45 55 Thermal 260 | . 5 11 . 118 . 19 . 6 46 . . 20 . 31 4 . Explosive 3 | . . . . 3 . . . . . . . . . . . . Electromagnetic 195 | . . . 6 . . . . . 20 . . 10 . 29 35 95 Robot Hit Streak 61 | . 5 7 15 18 . 15 . 10 18 . . 26 . 39 31 61 Robot Miss Streak 4 | . 1 2 1 3 . 1 . 1 4 . . 3 . 2 1 1 Penetration Max 1 | . . . . . . . . 1 . . . . . . 1 1 Secondary Targets 1 | . . 1 . . . . . . . . . . . . . . Max Gunslinging Chain 1 | . . 1 . . . . . . . . . . . . . . Shots Hit Robots 503 | . 9 16 14 89 . 18 . 12 41 . . 22 . 55 69 158 Core Hits 221 | . 6 8 9 45 . 3 . 5 19 . . 22 . 17 25 62 Critical Kills 4 | . . . . . . . . . 1 . . 1 . 1 . 1 Critical Parts Destroyed . | . . . . . . . . . . . . . . . . . Critical Strikes 26 | . . . . 10 . 1 . . 1 . . 1 . 2 4 7 Burn 11 | . . . . 10 . 1 . . . . . . . . . . Meltdown 3 | . . . . . . . . . 1 . . 1 . 1 . . Destroy 1 | . . . . . . . . . . . . . . . . 1 Blast 7 | . . . . . . . . . . . . . . . 3 4 Corrupt 4 | . . . . . . . . . . . . . . 1 1 2 Melee Attacks 40 | . . . . . . . . . . . . . . . 5 35 Impact . | . . . . . . . . . . . . . . . . . Slashing . | . . . . . . . . . . . . . . . . . Piercing 40 | . . . . . . . . . . . . . . . 5 35 Sneak Attacks . | . . . . . . . . . . . . . . . . . Combat Hostiles . | . . . . . . . . . . . . . . . . . Follow-up Attacks . | . . . . . . . . . . . . . . . . . Damage Inflicted 12579 | . 114 201 291 2476 . 434 . 311 1251 . . 674 . 1007 2201 3619 Guns 6894 | . 114 198 227 2116 . 434 . 311 473 . . 485 . 52 636 1848 Cannons 4108 | . . . . . . . . . 674 . . 189 . 955 1430 860 Explosions 741 | . . . 64 360 . . . . 101 . . . . . 135 81 Melee 830 | . . . . . . . . . . . . . . . . 830 Ramming 6 | . . 3 . . . . . . 3 . . . . . . . Kinetic 3179 | . 51 85 126 . . . . 137 . . . . . . 1147 1633 Thermal 5555 | . 63 113 64 2116 . 434 . 174 900 . . 427 . 955 228 81 Explosive 360 | . . . . 360 . . . . . . . . . . . . Electromagnetic 2649 | . . . 101 . . . . . 348 . . 247 . 52 826 1075 Impact . | . . . . . . . . . . . . . . . . . Slashing . | . . . . . . . . . . . . . . . . . Piercing 830 | . . . . . . . . . . . . . . . . 830 Highest Corruption 12 | . . . . . 1 1 1 . 1 1 1 1 . 11 12 3 Average Corruption 4 | . . . . . 1 1 1 . 1 1 1 1 . 8 9 1 Corruption Purged 25 | . . . . . . . 1 . . . . . . . 14 10 Corruption Blocked . | . . . . . . . . . . . . . . . . . Effects 72 | . . . . . . . . . 6 2 1 5 . 3 49 6 Message Errors 14 | . . . . . . . . . 2 . . 1 . 1 10 . Matter Fused 15 | . . . . . . . . . . . 1 1 . . 11 2 Heat Flow Errors 6 | . . . . . . . . . . . . . . 1 3 2 Energy Discharges 11 | . . . . . . . . . 1 . . 1 . 1 8 . Parts Fused 1 | . . . . . . . . . . . . . . . 1 . Data Loss (minor) 10 | . . . . . . . . . 1 1 . . . . 8 . Data Loss (major) 5 | . . . . . . . . . . 1 . 1 . . 3 . Misfires 2 | . . . . . . . . . 2 . . . . . . . Alerts 2 | . . . . . . . . . . . . 1 . . . 1 Misdirections 1 | . . . . . . . . . . . . . . . 1 . Weapon Failures 5 | . . . . . . . . . . . . . . . 4 1 Overload Shots . | . . . . . . . . . . . . . . . . . Overflow Damage 226 | . . . 2 6 . . . . 68 . . . . . 60 90 Projectiles 180 | . . . . . . . . . 68 . . . . . 60 52 Explosions 8 | . . . 2 6 . . . . . . . . . . . . Melee 38 | . . . . . . . . . . . . . . . . 38 Knockbacks 24 | . . . . . . . . . . . . . . . 14 10 Impact . | . . . . . . . . . . . . . . . . . Kinetic 22 | . . . . . . . . . . . . . . . 13 9 Secondary 2 | . . . . . . . . . . . . . . . 1 1 Self-Inflicted Damage 70 | . . . 23 . . . . . 47 . . . . . . . Shots 2 | . . . 1 . . . . . 1 . . . . . . . Rammed 2 | . . 1 . . . . . . 1 . . . . . . . Targets Rammed 2 | . . 1 . . . . . . 1 . . . . . . . Kicked . | . . . . . . . . . . . . . . . . . Crushed . | . . . . . . . . . . . . . . . . . Highest Temperature 193 | . 9 29 26 141 . . . . 110 . . 193 . 185 31 . Average Temperature 61 | . 5 14 19 60 . . . . 31 . . 93 . 99 31 . Received Heat Transfer 894 | . 18 33 42 513 . . . . 78 . . 18 . . 72 120 Siege Activations . | . . . . . . . . . . . . . . . . . Robots Corrupted 5 | . . . . . . . . . . . . . . . 2 3 Combat Hostiles 3 | . . . . . . . . . . . . . . . 2 1 Parts Fried 12 | . . . . . . . . . 2 . . 1 . . 3 6 Impact Corruptions 1 | . . . . . . . . . . . . . . . . 1 Robots Melted 4 | . . . . 1 . . . . 1 . . 1 . 1 . . Combat Hostiles 4 | . . . . 1 . . . . 1 . . 1 . 1 . . Parts Melted 21 | . . . . 13 . . . . 3 . . 2 . 3 . . Heat Transferred 9470 | . 185 333 100 4144 . 777 . 400 1183 . . 500 . 1500 248 100 Parts Sabotaged . | . . . . . . . . . . . . . . . . . Parts Stolen . | . . . . . . . . . . . . . . . . . Parts Stripped . | . . . . . . . . . . . . . . . . . Power Chain Reactions 6 | . . . 2 . . . . . 2 . . . . . 1 1 Alert | -11 -10 -10 -9 -8 -7 -7 -7 -7 -6 -6 -6 -5 -5 -5 -5 -4 ------- Run | Yrd Mat Min Mat Mat Fac Was Fac DSF Fac Low Dat Pro Fac Was Fac Fac Peak Influence 327 | . 83 146 136 327 61 17 . 20 175 . . . 180 52 314 265 Initial 177 | . . 26 . 24 61 17 . . 9 . . . 177 52 1 5 Average 71 | . 36 115 57 109 61 4 . 12 38 . . . 177 27 78 82 Maximum Alert Level 1 | . . . . 1 . . . . . . . . . . 1 1 Low Security (%) 93 | 100 100 100 100 76 100 100 100 100 100 . . . 100 100 96 89 Level 1 6 | . . . . 23 . . . . . . . . . . 3 10 Level 2 . | . . . . . . . . . . . . . . . . . Level 3 . | . . . . . . . . . . . . . . . . . Level 4 . | . . . . . . . . . . . . . . . . . Level 5 . | . . . . . . . . . . . . . . . . . High Security . | . . . . . . . . . . . . . . . . . Max Security . | . . . . . . . . . . . . . . . . . Squads Dispatched 23 | . . . 1 2 . . . . 4 . . . 1 . 7 8 Investigation 5 | . . . . . . . . . 1 . . . 1 . 2 1 Extermination 13 | . . . . . . . . . 3 . . . . . 4 6 Reinforcement 5 | . . . 1 2 . . . . . . . . . . 1 1 Assault . | . . . . . . . . . . . . . . . . . Garrison . | . . . . . . . . . . . . . . . . . Intercept . | . . . . . . . . . . . . . . . . . Searches Triggered . | . . . . . . . . . . . . . . . . . Construction Impeded . | . . . . . . . . . . . . . . . . . Haulers Reinforced 1 | . . . . . . . . . . . . . . . 1 . Active Scanning Responses . | . . . . . . . . . . . . . . . . . Cargo Convoy Interrupts . | . . . . . . . . . . . . . . . . . Stealth | -11 -10 -10 -9 -8 -7 -7 -7 -7 -6 -6 -6 -5 -5 -5 -5 -4 --------- Run | Yrd Mat Min Mat Mat Fac Was Fac DSF Fac Low Dat Pro Fac Was Fac Fac Distress Signals 3 | . . . . 2 . . . . . . . . . . . 1 Communications Jammed 25 | . . . . . . . . 5 . . . 2 . . 1 17 Distress Signals 17 | . . . . . . . . . . . . . . . 1 16 Times Spotted 143 | . 6 6 6 35 . 5 . 1 12 . . 7 . 6 19 40 Peak Tracking Total 6 | . 2 3 2 5 . 5 . 1 3 . . 3 . 4 3 6 Tactical Retreats 6 | . . . . 2 . . . . . . . . . . 1 3 Traps | -11 -10 -10 -9 -8 -7 -7 -7 -7 -6 -6 -6 -5 -5 -5 -5 -4 ------- Run | Yrd Mat Min Mat Mat Fac Was Fac DSF Fac Low Dat Pro Fac Was Fac Fac Traps Triggered 7 | . . . 1 1 2 . . . 1 . . . 1 . . 1 Indirectly . | . . . . . . . . . . . . . . . . . Trap Hack Attempts . | . . . . . . . . . . . . . . . . . Triggered . | . . . . . . . . . . . . . . . . . Disarmed . | . . . . . . . . . . . . . . . . . Reprogrammed . | . . . . . . . . . . . . . . . . . Reused . | . . . . . . . . . . . . . . . . . Traps Extracted . | . . . . . . . . . . . . . . . . . Installed . | . . . . . . . . . . . . . . . . . Triggered . | . . . . . . . . . . . . . . . . . Machines | -11 -10 -10 -9 -8 -7 -7 -7 -7 -6 -6 -6 -5 -5 -5 -5 -4 ---------- Run | Yrd Mat Min Mat Mat Fac Was Fac DSF Fac Low Dat Pro Fac Was Fac Fac Machines Disabled 5 | . . . . . . . . . 4 . . . . . 1 . Max in Single Turn 2 | . . . . . . . . . 2 . . . . . 1 . Garrison Access 1 | . . . . . 1 . . . . . . . . . . . Machines Repaired . | . . . . . . . . . . . . . . . . . Machines Dismantled . | . . . . . . . . . . . . . . . . . Machines Sabotaged . | . . . . . . . . . . . . . . . . . Overloaded Fab Kills . | . . . . . . . . . . . . . . . . . Hacking | -11 -10 -10 -9 -8 -7 -7 -7 -7 -6 -6 -6 -5 -5 -5 -5 -4 --------- Run | Yrd Mat Min Mat Mat Fac Was Fac DSF Fac Low Dat Pro Fac Was Fac Fac Machines Accessed 45 | . 3 . 4 6 1 . 1 . 8 . 3 . 1 . 10 8 Terminals 22 | . 1 . 2 4 . . 1 . 4 . . . . . 6 4 Fabricators 7 | . . . . . . . . . 3 . . . 1 . 2 1 Repair Stations 4 | . . . 1 . . . . . . . . . . . 1 2 Recycling Units 6 | . 2 . 1 2 . . . . . . . . . . 1 . Scanalyzers 1 | . . . . . . . . . 1 . . . . . . . Garrison Access 2 | . . . . . 1 . . . . . . . . . . 1 Total Hacks 176 | . 5 . 12 31 1 . 1 . 31 . 21 . 3 . 34 37 Successful 134 | . 5 . 9 25 1 . 1 . 22 . 21 . 3 . 21 26 Failed 42 | . . . 3 6 . . . . 9 . . . . . 13 11 Catastrophic 6 | . . . . . . . . . 3 . . . . . 3 . Database Lockouts . | . . . . . . . . . . . . . . . . . Manual 72 | . 2 . 5 14 . . . . 23 . . . 1 . 13 14 Terminals 114 | . 2 . 7 29 . . 1 . 24 . . . . . 25 26 Fabricators 17 | . . . . . . . . . 5 . . . 3 . 5 4 Repair Stations 10 | . . . 2 . . . . . . . . . . . 3 5 Recycling Units 9 | . 3 . 3 2 . . . . . . . . . . 1 . Scanalyzers 2 | . . . . . . . . . 2 . . . . . . . Garrison Access 3 | . . . . . 1 . . . . . . . . . . 2 Terminal Hacks 70 | . 1 . 2 16 . . 1 . 9 . 21 . . . 8 12 Record 5 | . . . . . . . . . . . 5 . . . . . Part Schematic 11 | . . . . 1 . . . . . . 8 . . . 1 1 Robot Schematic 5 | . . . . . . . . . . . 5 . . . . . Robot Analysis 1 | . . . . . . . . . . . . . . . . 1 Prototype ID Bank 7 | . . . . 1 . . . . 2 . 3 . . . . 1 Open DSF 1 | . . . . . . . 1 . . . . . . . . . Level Access Points 1 | . . . . . . . . . . . . . . . . 1 Branch Access Points 2 | . 1 . . 1 . . . . . . . . . . . . Emergency Access Points 5 | . . . . 2 . . . . . . . . . . 1 2 Terminal Index 3 | . . . . 1 . . . . 1 . . . . . . 1 Recycling Unit Index 1 | . . . . . . . . . 1 . . . . . . . Alert Level 9 | . . . 1 3 . . . . 2 . . . . . 1 2 Unreport Threat 2 | . . . . 1 . . . . . . . . . . 1 . Locate Traps 11 | . . . 1 4 . . . . 2 . . . . . 3 1 Recall Reinforcements 1 | . . . . 1 . . . . . . . . . . . . Registered Components 2 | . . . . . . . . . . . . . . . 1 1 Zone Layout 3 | . . . . 1 . . . . 1 . . . . . . 1 Fabricator Hacks 9 | . . . . . . . . . . . . . 2 . 4 3 Network Status 1 | . . . . . . . . . . . . . . . . 1 Load Schematic 4 | . . . . . . . . . . . . . 1 . 2 1 Build 4 | . . . . . . . . . . . . . 1 . 2 1 Repair Station Hacks 7 | . . . 2 . . . . . . . . . . . 1 4 Scan Component 3 | . . . 1 . . . . . . . . . . . . 2 Repair 3 | . . . 1 . . . . . . . . . . . . 2 Refit 1 | . . . . . . . . . . . . . . . 1 . Recycling Unit Hacks 8 | . 3 . 2 2 . . . . . . . . . . 1 . Report Inventory 7 | . 3 . 1 2 . . . . . . . . . . 1 . Retrieve Components 1 | . . . 1 . . . . . . . . . . . . . Scanalyzer 2 | . . . . . . . . . 2 . . . . . . . Insert Component 2 | . . . . . . . . . 2 . . . . . . . Garrison Access Hacks 1 | . . . . . 1 . . . . . . . . . . . Seal Access 1 | . . . . . 1 . . . . . . . . . . . Unauthorized Hacks 37 | . 1 . 3 7 . . . . 11 . . . 1 . 7 7 Terminals 32 | . 1 . 3 7 . . . . 7 . . . . . 7 7 Track 12 | . . . 1 3 . . . . 2 . . . . . 3 3 Assimilate 3 | . . . . 1 . . . . . . . . . . 1 1 Botnet 16 | . 1 . 2 3 . . . . 4 . . . . . 3 3 Operators 1 | . . . . . . . . . 1 . . . . . . . Fabricators 5 | . . . . . . . . . 4 . . . 1 . . . Report 4 | . . . . . . . . . 3 . . . 1 . . . Haulers 1 | . . . . . . . . . 1 . . . . . . . Repair Stations . | . . . . . . . . . . . . . . . . . Recycling Units . | . . . . . . . . . . . . . . . . . Scanalyzers . | . . . . . . . . . . . . . . . . . Garrison Access . | . . . . . . . . . . . . . . . . . Data Cores Recovered 2 | . . . 1 . . . . . 1 . . . . . . . Used 1 | . . . . . . . . . 1 . . . . . . . Hacking Detections 29 | . 1 . 3 3 . . . . 6 . . . 1 . 9 6 Full Trace Events 5 | . . . . . . . . . 1 . . . 1 . 2 1 Feedback Events . | . . . . . . . . . . . . . . . . . Feedback Blocked . | . . . . . . . . . . . . . . . . . Robot Schematics Acquired 5 | . . . . . . . . . . . 5 . . . . . Robots Built . | . . . . . . . . . . . . . . . . . Authchips . | . . . . . . . . . . . . . . . . . Time . | . . . . . . . . . . . . . . . . . Total Robot Build Rating . | . . . . . . . . . . . . . . . . . Part Schematics Acquired 11 | . . . . 1 . . . . . . 8 . . . 1 1 Parts Built 5 | . . . . . . . . . . . . . . . 3 2 Authchips . | . . . . . . . . . . . . . . . . . Time 358 | . . . . . . . . . . . . . 169 . 131 58 Total Part Build Rating 30 | . . . . . . . . . . . . . . . 16 14 Parts Repaired 3 | . . . 1 . . . . . . . . . . . . 2 Time 138 | . . . 32 . . . . . . . . . . . . 106 Parts Recycled . | . . . . . . . . . . . . . . . . . Recycled Matter . | . . . . . . . . . . . . . . . . . Retrieved Matter . | . . . . . . . . . . . . . . . . . Retrieved Components 2 | . . . 2 . . . . . . . . . . . . . Parts Scanalyzed . | . . . . . . . . . . . . . . . . . Part Schematics Acquired . | . . . . . . . . . . . . . . . . . Parts Damaged . | . . . . . . . . . . . . . . . . . Bothacking | -11 -10 -10 -9 -8 -7 -7 -7 -7 -6 -6 -6 -5 -5 -5 -5 -4 ------------ Run | Yrd Mat Min Mat Mat Fac Was Fac DSF Fac Low Dat Pro Fac Was Fac Fac Used RIF Installer . | . . . . . . . . . . . . . . . . . Robots Hacked . | . . . . . . . . . . . . . . . . . Non-combat . | . . . . . . . . . . . . . . . . . Combat . | . . . . . . . . . . . . . . . . . Robot Hacks Applied . | . . . . . . . . . . . . . . . . . Relay Couplers Released . | . . . . . . . . . . . . . . . . . Fabnet Peak Effective % . | . . . . . . . . . . . . . . . . . Robots Rewired 2 | . . . . . . . . . . . . . . . . 2 Allies Hacked . | . . . . . . . . . . . . . . . . . Hacks Repelled . | . . . . . . . . . . . . . . . . . Allies | -11 -10 -10 -9 -8 -7 -7 -7 -7 -6 -6 -6 -5 -5 -5 -5 -4 -------- Run | Yrd Mat Min Mat Mat Fac Was Fac DSF Fac Low Dat Pro Fac Was Fac Fac Total Allies 5 | . . . . . . 1 . . . . . . . . 1 3 Largest Group 1 | . . . . . . 1 . . . . . . . . 1 1 Highest-Rated Group 49 | . . . . . . 31 . . . . . . . . 26 49 Highest-Rated Ally 49 | . . . . . . 31 . . . . . . . . 26 49 Total Orders . | . . . . . . . . . . . . . . . . . Ally Attacks 10 | . . . . . . 6 . . . . . . . . . 4 Total Damage 113 | . . . . . . 85 . . . . . . . . . 28 Kills 1 | . . . . . . . . . . . . . . . . 1 Allies Corrupted 2 | . . . . . . . . . . . . . . . . 2 Allies Melted . | . . . . . . . . . . . . . . . . . Intel | -11 -10 -10 -9 -8 -7 -7 -7 -7 -6 -6 -6 -5 -5 -5 -5 -4 ------- Run | Yrd Mat Min Mat Mat Fac Was Fac DSF Fac Low Dat Pro Fac Was Fac Fac Robot Analysis Total 1 | . . . . . . . . . . . . . . . . 1 Derelict Logs Recovered 5 | . . 1 . . . . . . . 1 . 3 . . . . Drone Launches . | . . . . . . . . . . . . . . . . . Drone Recoveries . | . . . . . . . . . . . . . . . . . Exploration | -11 -10 -10 -9 -8 -7 -7 -7 -7 -6 -6 -6 -5 -5 -5 -5 -4 ------------- Run | Yrd Mat Min Mat Mat Fac Was Fac DSF Fac Low Dat Pro Fac Was Fac Fac Turns Passed 10736 | 28 290 432 559 1552 117 115 335 164 1723 306 87 724 120 199 1817 2168 Spaces Moved 6953 | 16 261 358 307 649 88 105 163 104 1459 303 88 620 90 112 1169 1061 Core 263 | . . . . . . 95 163 5 . . . . . . . . Treads 788 | 3 . 36 221 494 . . . . . . . . . . . 34 Legs 4 | 4 . . . . . . . . . . . . . . . . Wheels 5898 | 9 261 322 86 155 88 10 . 99 1459 303 88 620 90 112 1169 1027 Hover . | . . . . . . . . . . . . . . . . . Flight . | . . . . . . . . . . . . . . . . . Fastest Speed 50 | 100 100 100 100 130 130 50 200 100 100 100 100 100 100 100 100 110 Average Speed 117 | 116 100 106 143 165 130 74 200 104 100 100 100 100 100 102 110 132 Slowest Speed 240 | 160 100 160 160 240 130 200 200 200 100 100 100 100 100 115 115 170 Overloaded Moves . | . . . . . . . . . . . . . . . . . Propulsion Burnouts . | . . . . . . . . . . . . . . . . . Robots Hopped . | . . . . . . . . . . . . . . . . . Cave-ins Triggered . | . . . . . . . . . . . . . . . . . Exploration Rate (%) 44 | 2 57 67 31 54 3 74 4 89 30 47 76 79 4 84 29 22 Regions Visited 16 Branch Regions 4 Pre-discovered Areas . | . . . . . . . . . . . . . . . . . Known Exits Taken 10 | . 1 1 1 1 . . 1 . 1 1 1 1 . . 1 . Unknown Exits Taken 1 | 1 . . . . . . . . . . . . . . . . Scrap Searched 4 | . . . . . . . . . . 1 . 3 . . . . Spaces Dug 30 | . . . . . . . . . 10 . . . . . 11 9 Terrain Destroyed 116 | . . . 9 17 . . . . 39 . . 4 . 1 25 21 Melee 13 | . . . . . . . . . . . . . . . 5 8 Projectile 48 | . . . . . . . . . 15 . . 4 . 1 15 13 AOE 55 | . . . 9 17 . . . . 24 . . . . . 5 . Terrain Rammed . | . . . . . . . . . . . . . . . . . Walls Destroyed . | . . . . . . . . . . . . . . . . . Machines Disabled . | . . . . . . . . . . . . . . . . . Actions | -11 -10 -10 -9 -8 -7 -7 -7 -7 -6 -6 -6 -5 -5 -5 -5 -4 --------- Run | Yrd Mat Min Mat Mat Fac Was Fac DSF Fac Low Dat Pro Fac Was Fac Fac Total 8984 | 25 278 388 412 1001 92 120 172 148 1676 306 87 705 122 152 1632 1668 Wait 1254 | . 2 9 64 233 . 4 . 18 99 4 . 66 28 5 329 393 Move 6939 | 15 260 357 306 648 88 104 162 103 1458 302 87 619 90 111 1168 1061 Hop . | . . . . . . . . . . . . . . . . . Pick Up 51 | 1 1 1 7 3 3 . 3 2 11 . . . 1 . 11 7 Fast Attach 78 | 4 5 1 8 2 . 2 2 6 11 . . 2 . 5 13 17 Attach 21 | 1 . . . 2 . . 4 2 2 . . . . . 4 6 Detach 12 | 2 . . 1 . . . 1 1 2 . . 1 . . 2 2 Swap 31 | . 1 . 1 7 . . . . 6 . . . 1 . 5 10 Drop 86 | 2 3 2 11 3 1 . . 4 17 . . . 2 . 19 22 Fire 306 | . 6 11 11 62 . 10 . 6 39 . . 10 . 31 47 73 Melee 40 | . . . . . . . . . . . . . . . 5 35 Ram 1 | . . . . . . . . . 1 . . . . . . . Kick . | . . . . . . . . . . . . . . . . . Crush 1 | . . 1 . . . . . . . . . . . . . . Escape Stasis . | . . . . . . . . . . . . . . . . . Rewire 2 | . . . . . . . . . . . . . . . . 2 Trap . | . . . . . . . . . . . . . . . . . Miscellaneous 162 | . . 6 3 41 . . . 6 30 . . 7 . . 29 40 Route ------- -11/Scrapyard -10/Materials (discovered 3 exits: *Mat / *Min x2) -10/Mines -9/Materials -8/Materials (discovered 2 exits: *Fac x2) -7/Factory -7/Waste -7/Factory (discovered 2 exits: [*Low] / DSF) -7/DSF -6/Factory (discovered 3 exits: *Fac / *Low x2) -6/Lower Caves -6/Data Miner -5/Proximity Caves -5/Factory -5/Waste -5/Factory (discovered 2 exits: *Fac x2) -4/Factory (discovered 5 exits: Res x4 / Arm) History --------- Turn | Location | Event 1 | -11/Scrapyard | Discovered new exit (range 1) 6 | -11/Scrapyard | Upgraded with Propulsion slot (x1) 6 | -11/Scrapyard | Upgraded with Utility slot (x3) 6 | -11/Scrapyard | Upgraded with Weapon slot (x1) 29 | -11/Scrapyard | Entered Materials 73 | -10/Materials | Identified exit to Mines 276 | -10/Materials | Discovered new exit (range 5) 304 | -10/Materials | Build established: Mutant 319 | -10/Materials | Entered Mines 379 | -10/Mines | Found a damaged Exp. Sensor Array with a note attached 382 | -10/Mines | Found Prototype Device 382 | -10/Mines | Identified Exp. Sensor Array 391 | -10/Mines | Learned Materials interactive machine intel 465 | -10/Mines | Discovered new exit (range 3) 467 | -10/Mines | Identified exit to Materials 594 | -10/Mines | Assembled infested the area 599 | -10/Mines | Assisted by a Guerilla fighting off Assembled 751 | -10/Mines | Entered Materials 752 | -9/Materials | Loaded intel: 18 interactive machine locations 753 | -9/Materials | Reached level 2 753 | -9/Materials | Reached level 3 753 | -9/Materials | Reached level 4 776 | -9/Materials | Upgraded with Propulsion slot (x1) 776 | -9/Materials | Upgraded with Utility slot (x1) 838 | -9/Materials | Repaired EM Shotgun 1005 | -9/Materials | Discovered new exit (range 14) 1065 | -9/Materials | Build established: Hacker-Mutant 1096 | -9/Materials | Identified exit to Materials 1310 | -9/Materials | Entered another Materials area 1312 | -8/Materials | Reached level 5 1312 | -8/Materials | Reached level 6 1317 | -8/Materials | Upgraded with Utility slot (x1) 1416 | -8/Materials | Reached level 7 1664 | -8/Materials | Discovered new exit (range 16) 1966 | -8/Materials | Identified exit to Factory 1984 | -8/Materials | Reached level 8 2726 | -8/Materials | Upgraded with Utility slot (x1) 2750 | -8/Materials | Discovered exit to Factory (range 8) 2862 | -8/Materials | Entered Factory 2864 | -7/Factory | Reached level 9 2864 | -7/Factory | Reached level 10 2864 | -7/Factory | Upgraded with Propulsion slot (x1) 2979 | -7/Factory | Sucked down chute 2979 | -7/Factory | Entered Waste 2980 | -7/Waste | Met a frightened Derelict 2995 | -7/Waste | Spotted C-40 Crusher 3009 | -7/Waste | Spotted C-40 Crusher 3015 | -7/Waste | Crushed by Compactor (1 part destroyed, 1 dropped) 3018 | -7/Waste | Crushed by Compactor (1 part destroyed, 1 dropped) 3021 | -7/Waste | Crushed by Compactor (1 part destroyed, 2 dropped) 3024 | -7/Waste | Crushed by Compactor (1 part destroyed, 2 dropped) 3027 | -7/Waste | Spotted C-40 Crusher 3028 | -7/Waste | Crushed by Compactor (1 part destroyed, 1 dropped) 3032 | -7/Waste | Spotted C-40 Crusher 3037 | -7/Waste | Found Imp. Powered Armor 3058 | -7/Waste | Spotted C-40 Crusher 3059 | -7/Waste | Lost 5 parts (1n3u1w) 3060 | -7/Waste | Crushed by Compactor (1 part destroyed, 1 dropped) 3068 | -7/Waste | Spotted C-40 Crusher 3083 | -7/Waste | Discovered new exit (range 10) 3094 | -7/Waste | Entered Factory 3156 | -7/Factory | Discovered new exit (range 6) 3427 | -7/Factory | Identified exit to DSF 3429 | -7/Factory | Entered DSF 3431 | -7/DSF | Reached level 11 3475 | -7/DSF | Additional patrols routed to DSF 3486 | -7/DSF | Core integrity fell below 50% 3581 | -7/DSF | Discovered new exit (range 11) 3593 | -7/DSF | Entered Factory 3595 | -6/Factory | Reached level 12 3595 | -6/Factory | Reached level 13 3596 | -6/Factory | Upgraded with Utility slot (x1) 3904 | -6/Factory | Discovered new exit (range 13) 3928 | -6/Factory | Identified exit to Lower Caves 3970 | -6/Factory | Discovered new exit (range 9) 3975 | -6/Factory | Identified exit to Factory 4282 | -6/Factory | Discovered exit to Lower Caves (range 7) 5217 | -6/Factory | Reached level 14 5251 | -6/Factory | Upgraded with Weapon slot (x1) 5316 | -6/Factory | Entered Lower Caves 5433 | -6/Lower Caves | Learned Factory emergency access door positions 5531 | -6/Lower Caves | A Derelict revealed a hidden shortcut to meet someone special 5535 | -6/Lower Caves | Identified exit to Data Miner 5557 | -6/Lower Caves | Build established: Hacker-Tank 5622 | -6/Lower Caves | Entered Data Miner 5622 | -6/Data Miner | Discovered new exit (range 6) 5640 | -6/Data Miner | Met Data Miner 5687 | -6/Data Miner | Received God Mode back door access code from Data Miner 5708 | -6/Data Miner | Identified exit to Proximity Caves 5709 | -6/Data Miner | Entered Proximity Caves 5711 | -5/Proximity Caves | Reached level 15 5717 | -5/Proximity Caves | Spotter reported a threat 6054 | -5/Proximity Caves | Reached level 16 6061 | -5/Proximity Caves | Attracted the attention of an 0b10 checkpoint 6072 | -5/Proximity Caves | Upgraded with Power slot (x1) 6281 | -5/Proximity Caves | Learned Factory stockpile data 6433 | -5/Proximity Caves | Entered Factory 6435 | -5/Factory | Reached level 17 6553 | -5/Factory | Sucked down chute 6553 | -5/Factory | Entered Waste 6562 | -5/Waste | Spotted C-40 Crusher 6568 | -5/Waste | EMP discharged 6571 | -5/Waste | Destroyed C-40 Crusher 6596 | -5/Waste | Spotted C-40 Crusher 6613 | -5/Waste | Spotted C-40 Crusher 6616 | -5/Waste | Spotted C-40 Crusher 6617 | -5/Waste | Crushed by Compactor (1 part destroyed) 6620 | -5/Waste | Crushed by Compactor (0 parts destroyed, 1 dropped) 6623 | -5/Waste | Crushed by Compactor (1 part destroyed) 6626 | -5/Waste | Crushed by Compactor (1 part destroyed, 1 dropped) 6629 | -5/Waste | Crushed by Compactor (0 parts destroyed, 2 dropped) 6631 | -5/Waste | Destroyed C-40 Crusher 6643 | -5/Waste | Spotted C-40 Crusher 6652 | -5/Waste | Spotted C-40 Crusher 6657 | -5/Waste | Lost 3 parts (1p1u1w) 6657 | -5/Waste | Destroyed C-40 Crusher 6668 | -5/Waste | EMP discharged 6668 | -5/Waste | System corruption reached 10% 6686 | -5/Waste | Crushed by Compactor (0 parts destroyed, 1 dropped) 6689 | -5/Waste | Crushed by Compactor (1 part destroyed, 1 dropped) 6692 | -5/Waste | Crushed by Compactor (1 part destroyed) 6743 | -5/Waste | Discovered new exit (range 10) 6751 | -5/Waste | Identified exit to Factory 6752 | -5/Waste | Entered Factory 6794 | -5/Factory | Discovered new exit (range 4) 6797 | -5/Factory | Identified exit to Factory 6957 | -5/Factory | Fabricated Exp. Heat Sink? 7221 | -5/Factory | Reached level 18 7252 | -5/Factory | Upgraded with Power slot (x1) 7492 | -5/Factory | Fabricated Imp. System Restoration Module? 7594 | -5/Factory | Found Mni. Smartbomb Launcher 8125 | -5/Factory | Build established: Hacker-Skirmisher 8373 | -5/Factory | Discovered exit to Factory (range 17) 8531 | -5/Factory | Build established: Hacker-Assassin 8569 | -5/Factory | Entered another Factory area 8570 | -4/Factory | Identified exit to Armory 8571 | -4/Factory | Reached level 19 8571 | -4/Factory | Reached level 20 8575 | -4/Factory | Upgraded with Utility slot (x1) 8637 | -4/Factory | Repaired Imp. Weapon Cycler 8715 | -4/Factory | Identified exit to Research 9355 | -4/Factory | Reached level 21 9443 | -4/Factory | Build established: Hacker-Skirmisher 9842 | -4/Factory | Build established: Hacker-Assassin 9859 | -4/Factory | Fabricated Centrium Wheel? 10219 | -4/Factory | Core integrity fell below 50% 10435 | -4/Factory | Reached level 22 10572 | -4/Factory | Repaired Imp. Trap Scanner 10720 | -4/Factory | Core integrity fell below 20% 10737 | -4/Factory | Destroyed by P-70 Sage with High-powered Shock Rifle Last Messages --------------- 10588_ Acquired Unknown Protection. 10588_ Identified Imp. Propulsion Shielding. 10590_ Dropped Imp. Propulsion Shielding. 10591_ Acquired Imp. Medium Armor Plating. 10594_ Dropped Mni. Smartbomb Launcher. 10594_ Acquired Micro-nuke Launcher. 10675_ Slug penetrates Wall. 10680_ Y-64 Sentinel shuts down. 10687_ Attempting to rewire Y-64 Sentinel. 10687_ Y-64 Sentinel rewired. 10691_ Slug penetrates W-44 Eye. 10691_ W-44 Eye destroyed. 10693_ K-01 Serf collects debris. 10705_ Acquired 47 matter. 10705_ Slug penetrates Wall. 10708_ Sentinel 7a system terminally corrupted. 10708_ Wave Gun fried. 10708_ Adv. Heat Sink fried. 10709_ K-01 Serf collects debris. 10728_ P-70 Sage resets P-70 Sage, system corruption cleaned. Map ----- +----------------------------------------------------+ | | | | | | | | | | | | | | | | | ?????????????????????????????????????????????????? | | ?????????????????????????????????????????????????? | | ?????????????????????????????????????????????????? | | ?????????????????????????????????????????????????? | | ??????????????? ???????????????????????????????? | | ?????????????? ???????????????????????????????? | | ????????????? ??????????????????????????????# | | ????????????? ?????????????????????????????# | | ???????????? ????????????????????###??????# | | ???????????? ???????????#########"##?????? | | ??????????? ######?????# "####### | | ??????????? ####### [ | | ??????????? =%! ######+# | | ?????????? = ## ] | | ?????????? ## | | ????????? p !== ## = | | ????????? p m! * k ## | | ????????? @####### ######## | | ?????????? #############?????# #??????# | | ????????????????????????????????## ##??????# | | ?????????????????????????????????# #???????# | | ?????????????????????????????????# ???? | | ?????????????????????????????????# ?? | | ?????????????????????????????????# ? | | ?????????????????????????????????# ?? | | ?????????????????????????????????# ???? | | ????????????????????????????????? ????? | | ?????????????????????????????????? ????? | | ?????????????????????????????????? ######?????? | | ?????????????????????????????????????????????????? | | ?????????????????????????????????????????????????? | | ?????????????????????????????????????????????????? | | ?????????????????????????????????????????????????? | | ???????????????g?????????????????????????????????? | | ???????????????????????????????????????????????=?? | | ????????????????????????????????????????????????